fUSD/lending_fUSD_20250630
["ID","MTS","AMOUNT","RATE_DAILY","PERIOD"]
[368689228,1751299700114,-634.9,0.00013896,2]
[368689229,1751299700136,-490.0,0.00013896,2]
[368689230,1751299700157,-1570.36,0.00013896,2]
[368689231,1751299700179,-490.0,0.00013896,2]
[368689232,1751299700201,-1063.81,0.00013896,2]
[368689233,1751299700222,-490.0,0.00013896,2]
[368689234,1751299700243,-490.0,0.00013896,2]
[368689235,1751299700266,-712.1,0.00013896,2]
[368689236,1751299700287,-523.69,0.00013896,2]
[368689237,1751299700309,-490.0,0.00013896,2]
[368689238,1751299700331,-900.78,0.00013896,2]
[368689239,1751299700354,-697.41,0.00013896,2]
[368689240,1751299700376,-490.0,0.00013896,2]
[368689241,1751299700399,-1305.24,0.00013896,2]
[368689242,1751299700425,-1183.07,0.00013896,2]
[368689243,1751299700448,-490.0,0.00013896,2]
[368689244,1751299700470,-1378.52,0.00013896,2]
[368689245,1751299700492,-1058.25,0.00013896,2]
[368689246,1751299700513,-490.0,0.00013896,2]
[368689247,1751299700535,-788.08,0.00013896,2]
[368689248,1751299700561,-1036.11,0.00013896,2]
[368689249,1751299700584,-490.0,0.00013896,2]
[368689250,1751299700606,-490.0,0.00013896,2]
[368689251,1751299700628,-490.0,0.00013896,2]
[368689252,1751299700651,-490.0,0.00013896,2]
[368689253,1751299700673,-1300.51,0.00013896,2]
[368689254,1751299700695,-490.0,0.00013896,2]
[368689255,1751299700717,-490.0,0.00013896,2]
[368689256,1751299700738,-848.24,0.00013896,2]
[368689257,1751299700761,-1046.88,0.00013896,2]
[368689258,1751299700784,-8646.37,0.00013896,2]
[368689259,1751299700806,-490.0,0.00013896,2]
[368689260,1751299700829,-1097.32,0.00013896,2]
[368689261,1751299700852,-1212.87,0.00013896,2]
[368689262,1751299700878,-844.78,0.00013896,2]
[368689263,1751299700901,-2238.58,0.00013896,2]
[368689264,1751299700924,-835.93,0.00013896,2]
[368689265,1751299700948,-490.0,0.00013896,2]
[368689266,1751299700971,-490.0,0.00013896,2]
[368689267,1751299700994,-915.64,0.00013896,2]
[368689268,1751299701016,-490.0,0.00013896,2]
[368689269,1751299701043,-550.74,0.00013896,2]
[368689270,1751299701066,-611.97,0.00013896,2]
[368689271,1751299701089,-490.0,0.00013896,2]
[368689272,1751299701115,-490.0,0.00013896,2]
[368689273,1751299701139,-4447.92,0.00013896,2]
[368689274,1751299701162,-771.07,0.00013896,2]
[368689275,1751299701184,-490.0,0.00013896,2]
[368689276,1751299701208,-4268.53,0.00013896,2]
[368689277,1751299701231,-490.0,0.00013896,2]
[368689278,1751299701253,-490.0,0.00013896,2]
[368689279,1751299701276,-740.03,0.00013896,2]
[368689280,1751299701299,-490.0,0.00013896,2]
[368689281,1751299701322,-490.0,0.00013896,2]
[368689282,1751299701346,-1863.3,0.00013896,2]
[368689283,1751299701370,-2792.3,0.00013896,2]
[368689284,1751299701392,-2087.03,0.00013896,2]
[368689285,1751299701415,-871.74,0.00013896,2]
[368689286,1751299701438,-490.0,0.00013896,2]
[368689287,1751299701463,-490.0,0.00013896,2]
[368689288,1751299701486,-491.79,0.00013896,2]
[368689289,1751299701509,-624.63,0.00013896,2]
[368689290,1751299701530,-490.0,0.00013896,2]
[368689291,1751299701556,-490.0,0.00013896,2]
[368689292,1751299701581,-1071.01,0.00013896,2]
[368689293,1751299701605,-490.0,0.00013896,2]
[368689294,1751299701630,-3084.15,0.00013896,2]
[368689295,1751299701653,-490.0,0.00013896,2]
[368689296,1751299701676,-571.15,0.00013896,2]
[368689297,1751299701701,-832.12,0.00013896,2]
[368689298,1751299701725,-490.0,0.00013896,2]
[368689299,1751299701749,-762.89,0.00013896,2]
[368689300,1751299701773,-490.0,0.00013896,2]
[368689301,1751299701797,-490.0,0.00013896,2]
[368689302,1751299701819,-490.0,0.00013896,2]
[368689303,1751299701844,-2999.24,0.00013896,2]
[368689304,1751299701873,-490.0,0.00013896,2]
[368689305,1751299701900,-490.0,0.00013896,2]
[368689306,1751299701925,-3772.43,0.00013896,2]
[368689307,1751299701951,-1311.33,0.00013896,2]
[368689308,1751299701975,-490.0,0.00013896,2]
[368689309,1751299701998,-490.0,0.00013896,2]
[368689310,1751299702022,-490.0,0.00013896,2]
[368689311,1751299702046,-1471.4,0.00013896,2]
[368689312,1751299702070,-2752.35,0.00013896,2]
[368689313,1751299702092,-490.0,0.00013896,2]
[368689314,1751299702117,-2467.12,0.00013896,2]
[368689315,1751299702140,-753.4,0.00013896,2]
[368689316,1751299702165,-1098.39,0.00013896,2]
[368689317,1751299702187,-490.0,0.00013896,2]
[368689318,1751299702210,-792.65,0.00013896,2]
[368689319,1751299702232,-982.52,0.00013896,2]
[368689320,1751299702255,-757.58,0.00013896,2]
[368689321,1751299702279,-1506.8,0.00013896,2]
[368689322,1751299702301,-490.0,0.00013896,2]
[368689323,1751299702324,-490.0,0.00013896,2]
[368689324,1751299702347,-490.0,0.00013896,2]
[368689325,1751299702369,-490.0,0.00013896,2]
[368689326,1751299702393,-1199.89,0.00013896,2]
[368689327,1751299702416,-592.17,0.00013896,2]
[368689328,1751299702439,-3067.15,0.00013896,2]
[368689329,1751299702468,-935.84,0.00013896,2]
[368689330,1751299702491,-490.0,0.00013896,2]
[368689331,1751299702515,-999.34,0.00013896,2]
[368689332,1751299702538,-573.75,0.00013896,2]
[368689333,1751299702563,-490.0,0.00013896,2]
[368689334,1751299702587,-490.0,0.00013896,2]
[368689335,1751299702613,-495.89,0.00013896,2]
[368689336,1751299702637,-490.0,0.00013896,2]
[368689337,1751299702661,-1627.35,0.00013896,2]
[368689338,1751299702687,-500.0,0.00013896,2]
[368689339,1751299703109,-500.0,0.00013896,2]
[368689340,1751299703134,-1564.68,0.00013896,2]
[368689341,1751299703157,-613.67,0.00013896,2]
[368689342,1751299703180,-1226.44,0.00013896,2]
[368689343,1751299703202,-490.0,0.00013896,2]
[368689344,1751299703225,-3074.82,0.00013896,2]
[368689345,1751299703248,-490.0,0.00013896,2]
[368689346,1751299703273,-490.0,0.00013896,2]
[368689347,1751299703296,-1280.94,0.00013896,2]
[368689348,1751299703319,-508.86,0.00013896,2]
[368689349,1751299703342,-505.55,0.00013896,2]
[368689350,1751299703367,-891.85,0.00013896,2]
[368689351,1751299703391,-1797.52,0.00013896,2]
[368689352,1751299703415,-2315.25,0.00013896,2]
[368689353,1751299703438,-490.0,0.00013896,2]
[368689354,1751299703461,-1000.0,0.00013896,2]
[368689355,1751299703484,-3510.21,0.00013896,2]
[368689356,1751299703506,-490.0,0.00013896,2]
[368689357,1751299703530,-490.0,0.00013896,2]
[368689358,1751299703557,-657.37,0.00013896,2]
[368689359,1751299703581,-579.57,0.00013896,2]
[368689360,1751299703607,-560.92,0.00013896,2]
[368689361,1751299703634,-6040.86,0.00013896,2]
[368689362,1751299703660,-1313.45,0.00013896,2]
[368689363,1751299703684,-490.0,0.00013896,2]
[368689364,1751299703709,-3433.79,0.00013896,2]
[368689365,1751299703733,-490.0,0.00013897,2]
[368689366,1751299703757,-490.0,0.00013897,2]
[368689367,1751299703781,-490.0,0.00013897,2]
[368689368,1751299703806,-490.0,0.00013897,2]
[368689369,1751299703830,-490.0,0.00013897,2]
[368689370,1751299703854,-732.03,0.00013897,2]
[368689371,1751299703880,-500.0,0.00013897,2]
[368689372,1751299703904,-511.37001645,0.00013897,2]
[368689373,1751299703928,-490.0,0.00013897,2]
[368689374,1751299703953,-490.0,0.00013897,2]
[368689375,1751299703978,-502.05,0.00013897,2]
[368689376,1751299704002,-490.0,0.00013897,2]
[368689377,1751299704026,-490.0,0.00013897,2]
[368689378,1751299704050,-490.0,0.00013897,2]
[368689379,1751299704073,-490.0,0.00013897,2]
[368689380,1751299704095,-490.0,0.00013897,2]
[368689381,1751299704118,-490.0,0.00013897,2]
[368689382,1751299704145,-490.0,0.00013897,2]
[368689383,1751299704167,-490.0,0.00013897,2]
[368689384,1751299704189,-490.0,0.00013897,2]
[368689385,1751299704211,-490.0,0.00013897,2]
[368689386,1751299704233,-490.0,0.00013897,2]
[368689387,1751299704254,-490.0,0.00013897,2]
[368689388,1751299704277,-998.58,0.00013897,2]
[368689389,1751299704300,-1109.61,0.00013897,2]
[368689390,1751299704323,-490.0,0.00013897,2]
[368689391,1751299704346,-490.0,0.00013897,2]
[368689392,1751299704370,-490.0,0.00013897,2]
[368689393,1751299704393,-490.0,0.00013897,2]
[368689394,1751299704416,-710.19,0.00013897,2]
[368689395,1751299704439,-490.0,0.00013897,2]
[368689396,1751299704461,-490.0,0.00013897,2]
[368689397,1751299704482,-389.70102202,0.00013897,2]
[368689398,1751299704505,-490.0,0.00013897,2]
[368689399,1751299704527,-490.0,0.00013897,2]
[368689400,1751299704552,-500.0,0.00013897,2]
[368689401,1751299704576,-490.0,0.00013897,2]
[368689402,1751299704600,-490.0,0.00013897,2]
[368689403,1751299704622,-490.0,0.00013897,2]
[368689404,1751299704645,-490.0,0.00013897,2]
[368689405,1751299704667,-732.5,0.00013897,2]
[368689406,1751299704689,-395.30303769,0.00013897,2]
[368689407,1751299704711,-205.2657756,0.00013897,2]
[368689408,1751299704733,-182.5134376,0.00013897,2]
[368689409,1751299704756,-294.84268556,0.00013897,2]
[368689410,1751299704782,-607.39,0.00013897,2]
[368689411,1751299704805,-1209.07,0.00013897,2]
[368689412,1751299704827,-490.0,0.00013897,2]
[368689413,1751299704849,-490.0,0.00013897,2]
[368689414,1751299704873,-500.36,0.00013897,2]
[368689415,1751299704897,-490.0,0.00013897,2]
[368689416,1751299704921,-490.0,0.00013897,2]
[368689417,1751299704946,-1255.78,0.00013897,2]
[368689418,1751299704971,-490.0,0.00013897,2]
[368689419,1751299704994,-941.42,0.00013897,2]
[368689420,1751299705018,-2195.61,0.00013897,2]
[368689421,1751299705042,-490.0,0.00013897,2]
[368689422,1751299705069,-490.0,0.00013897,2]
[368689423,1751299705093,-490.0,0.00013897,2]
[368689424,1751299705117,-986.37,0.00013897,2]
[368689425,1751299705139,-156.76059382,0.00013897,2]
[368689426,1751299705162,-490.0,0.00013897,2]
[368689427,1751299705185,-975.61,0.00013897,2]
[368689428,1751299705208,-490.0,0.00013897,2]
[368689429,1751299705232,-490.0,0.00013897,2]
[368689430,1751299705255,-546.15,0.00013897,2]
[368689431,1751299705278,-490.0,0.00013897,2]
[368689432,1751299705300,-490.0,0.00013897,2]
[368689433,1751299705323,-490.0,0.00013897,2]
[368689434,1751299705347,-490.0,0.00013897,2]
[368689435,1751299705369,-490.0,0.00013897,2]
[368689436,1751299705391,-490.0,0.00013897,2]
[368689437,1751299705413,-490.0,0.00013897,2]
[368689438,1751299705435,-490.0,0.00013897,2]
[368689439,1751299705457,-490.0,0.00013897,2]
[368689440,1751299705480,-756.44,0.00013897,2]
[368689441,1751299705503,-643.18,0.00013897,2]
[368689442,1751299705524,-712.26,0.00013897,2]
[368689443,1751299705547,-490.0,0.00013897,2]
[368689444,1751299705570,-664.04,0.00013897,2]
[368689445,1751299705592,-492.45,0.00013897,2]
[368689446,1751299705615,-490.0,0.00013897,2]
[368689447,1751299705637,-490.0,0.00013897,2]
[368689448,1751299705661,-623.05,0.00013897,2]
[368689449,1751299705801,-624.17,0.00013897,2]
[368689450,1751299705824,-490.0,0.00013897,2]
[368689451,1751299705847,-1281.47,0.00013897,2]
[368689452,1751299705870,-602.18,0.00013897,2]
[368689453,1751299705896,-490.0,0.00013897,2]
[368689454,1751299705924,-556.22,0.00013897,2]
[368689455,1751299705947,-490.0,0.00013897,2]
[368689456,1751299705971,-490.0,0.00013897,2]
[368689457,1751299705994,-490.0,0.00013897,2]
[368689458,1751299706017,-490.0,0.00013897,2]
[368689459,1751299706039,-490.0,0.00013897,2]
[368689460,1751299706065,-810.33,0.00013897,2]
[368689461,1751299706086,-490.0,0.00013897,2]
[368689462,1751299706108,-490.0,0.00013897,2]
[368689463,1751299706130,-490.0,0.00013897,2]
[368689464,1751299706152,-490.0,0.00013897,2]
[368689465,1751299706174,-495.78079685,0.00013897,2]
[368689466,1751299706196,-261.33257836,0.00013897,2]
[368689467,1751299706219,-490.0,0.00013897,2]
[368689468,1751299706240,-490.0,0.00013897,2]
[368689469,1751299706262,-540.2,0.00013897,2]
[368689470,1751299706283,-490.0,0.00013897,2]
[368689471,1751299706304,-490.0,0.00013897,2]
[368689472,1751299706328,-490.0,0.00013897,2]
[368689473,1751299706351,-490.0,0.00013897,2]
[368689474,1751299706373,-490.0,0.00013897,2]
[368689475,1751299706394,-490.0,0.00013897,2]
[368689476,1751299706416,-490.0,0.00013897,2]
[368689477,1751299706439,-490.0,0.00013897,2]
[368689478,1751299706461,-490.0,0.00013897,2]
[368689479,1751299706483,-490.0,0.00013897,2]
[368689480,1751299706504,-232.47609016,0.00013897,2]
[368689481,1751299706528,-863.11,0.00013897,2]
[368689482,1751299706550,-490.0,0.00013897,2]
[368689483,1751299706572,-490.0,0.00013897,2]
[368689484,1751299706594,-490.0,0.00013897,2]
[368689485,1751299706615,-490.0,0.00013897,2]
[368689486,1751299706637,-490.0,0.00013897,2]
[368689487,1751299706660,-490.0,0.00013897,2]
[368689488,1751299706682,-490.0,0.00013897,2]
[368689489,1751299706702,-214.53339754,0.00013897,2]
[368689490,1751299706727,-492.085748,0.00013897,2]
[368689491,1751299706750,-490.0,0.00013897,2]
[368689492,1751299706772,-490.0,0.00013897,2]
[368689493,1751299706798,-490.0,0.00013897,2]
[368689494,1751299706822,-860.31,0.00013897,2]
[368689495,1751299706844,-490.0,0.00013897,2]
[368689496,1751299706868,-490.0,0.00013897,2]
[368689497,1751299706895,-490.0,0.00013897,2]
[368689498,1751299706918,-490.0,0.00013897,2]
[368689499,1751299706941,-490.0,0.00013897,2]
[368689500,1751299706967,-490.0,0.00013897,2]
[368689501,1751299706989,-490.0,0.00013897,2]
[368689502,1751299707012,-490.0,0.00013897,2]
[368689503,1751299707035,-490.0,0.00013897,2]
[368689504,1751299707058,-490.0,0.00013897,2]
[368689505,1751299707082,-982.11,0.00013897,2]
[368689506,1751299707104,-490.0,0.00013897,2]
[368689507,1751299707126,-490.0,0.00013897,2]
[368689508,1751299707148,-790.31,0.00013897,2]
[368689509,1751299707171,-490.0,0.00013897,2]
[368689510,1751299707193,-490.0,0.00013897,2]
[368689511,1751299707215,-490.0,0.00013897,2]
[368689512,1751299707236,-553.22,0.00013897,2]
[368689513,1751299707260,-774.04,0.00013897,2]
[368689514,1751299707282,-909.43,0.00013897,2]
[368689515,1751299707305,-490.0,0.00013897,2]
[368689516,1751299707326,-490.0,0.00013897,2]
[368689517,1751299707348,-1395.55,0.00013897,2]
[368689518,1751299707370,-490.0,0.00013897,2]
[368689519,1751299707391,-1007.31,0.00013897,2]
[368689520,1751299707412,-490.0,0.00013897,2]
[368689521,1751299707434,-490.0,0.00013897,2]
[368689522,1751299707457,-1184.28,0.00013897,2]
[368689523,1751299707479,-490.0,0.00013897,2]
[368689524,1751299707502,-490.0,0.00013897,2]
[368689525,1751299707524,-490.0,0.00013897,2]
[368689526,1751299707547,-490.0,0.00013897,2]
[368689527,1751299707569,-835.97,0.00013897,2]
[368689528,1751299707592,-1875.55,0.00013897,2]
[368689529,1751299707615,-490.0,0.00013897,2]
[368689530,1751299707638,-547.93,0.00013897,2]
[368689531,1751299707660,-490.0,0.00013897,2]
[368689532,1751299707683,-490.0,0.00013897,2]
[368689533,1751299707706,-490.0,0.00013897,2]
[368689534,1751299707729,-490.0,0.00013897,2]
[368689535,1751299707751,-490.0,0.00013897,2]
[368689536,1751299707775,-490.0,0.00013897,2]
[368689537,1751299707799,-490.0,0.00013897,2]
[368689538,1751299707822,-490.0,0.00013897,2]
[368689539,1751299707846,-1251.17,0.00013897,2]
[368689540,1751299707870,-490.0,0.00013897,2]
[368689541,1751299707895,-490.0,0.00013897,2]
[368689542,1751299707918,-534.41,0.00013897,2]
[368689543,1751299707940,-500.0,0.00013897,2]
[368689544,1751299707964,-490.0,0.00013897,2]
[368689545,1751299707986,-490.0,0.00013897,2]
[368689546,1751299708009,-1233.06,0.00013897,2]
[368689547,1751299708031,-1040.49,0.00013897,2]
[368689548,1751299708052,-490.0,0.00013897,2]
[368689549,1751299708074,-1381.52,0.00013897,2]
[368689550,1751299708098,-490.0,0.00013897,2]
[368689551,1751299708119,-490.0,0.00013897,2]
[368689552,1751299708140,-490.0,0.00013897,2]
[368689553,1751299708164,-490.0,0.00013897,2]
[368689554,1751299708186,-490.0,0.00013897,2]
[368689555,1751299708211,-490.0,0.00013897,2]
[368689556,1751299708233,-908.31,0.00013897,2]
[368689557,1751299708255,-490.0,0.00013897,2]
[368689558,1751299708276,-490.0,0.00013897,2]
[368689559,1751299708298,-490.0,0.00013897,2]
[368689560,1751299708320,-490.0,0.00013897,2]
[368689561,1751299708341,-490.0,0.00013897,2]
[368689562,1751299708368,-490.0,0.00013897,2]
[368689563,1751299708390,-494.54,0.00013897,2]
[368689564,1751299708412,-1059.94,0.00013897,2]
[368689565,1751299708433,-490.0,0.00013897,2]
[368689566,1751299708454,-490.0,0.00013897,2]
[368689567,1751299708475,-490.0,0.00013897,2]
[368689568,1751299708496,-490.0,0.00013897,2]
[368689569,1751299708517,-490.0,0.00013897,2]
[368689570,1751299708538,-1871.14,0.00013897,2]
[368689571,1751299708558,-548.48,0.00013897,2]
[368689572,1751299708580,-1090.38,0.00013897,2]
[368689573,1751299708602,-490.0,0.00013897,2]
[368689574,1751299708623,-490.0,0.00013897,2]
[368689575,1751299708646,-706.8,0.00013897,2]
[368689576,1751299708668,-490.0,0.00013897,2]
[368689577,1751299708690,-1016.71,0.00013897,2]
[368689578,1751299708713,-745.94,0.00013897,2]
[368689579,1751299708734,-490.0,0.00013897,2]
[368689580,1751299708756,-490.0,0.00013897,2]
[368689581,1751299708778,-490.0,0.00013897,2]
[368689582,1751299708801,-496.07,0.00013897,2]
[368689583,1751299708824,-490.0,0.00013897,2]
[368689584,1751299708846,-760.45,0.00013897,2]
[368689585,1751299708871,-490.0,0.00013897,2]
[368689586,1751299708895,-490.0,0.00013897,2]
[368689587,1751299708919,-490.0,0.00013897,2]
[368689588,1751299708941,-490.0,0.00013897,2]
[368689589,1751299708968,-745.56,0.00013897,2]
[368689590,1751299708990,-733.68,0.00013897,2]
[368689591,1751299709013,-579.82216109,0.000139,2]
[368689592,1751299709037,-203.25008129,0.000139,2]
[368689593,1751299739203,809.0,0.00012302,2]
[368689782,1751299770760,150.0,0.00024429,120]
[368689798,1751299831691,-158.902191,0.00013707,2]
[368689799,1751299831702,-215.80669008,0.00013726,2]
[368689800,1751299831713,-265.44724093,0.00013737,2]
[368689801,1751299831842,-34.55275907,0.00013737,2]
[368689802,1751299831852,-250.0,0.00013767,2]
[368689803,1751299831862,-538.43286407,0.00013826,2]
[368689804,1751299831874,-661.56713593,0.00013826,2]
[368689805,1751299831884,-12046.63712425,0.00013827,2]
[368689806,1751299831894,-768.96173899,0.00013831,2]
[368689807,1751299831904,-768.96173899,0.00013842,2]
[368689808,1751299831914,-768.96173899,0.00013854,2]
[368689809,1751299831926,-768.96173899,0.00013865,2]
[368689810,1751299831937,-768.96173899,0.00013877,2]
[368689811,1751299831947,-768.96173899,0.00013888,2]
[368689812,1751299831956,-2557.79,0.00013895,2]
[368689813,1751299831967,-974.76,0.00013895,2]
[368689814,1751299831978,-863.25,0.00013895,2]
[368689815,1751299831988,-992.94,0.00013895,2]
[368689816,1751299831999,-877.49,0.00013895,2]
[368689817,1751299832010,-150.0,0.00013895,2]
[368689818,1751299832021,-986.56,0.00013895,2]
[368689819,1751299832031,-490.0,0.00013895,2]
[368689820,1751299832041,-595.37,0.00013895,2]
[368689821,1751299832051,-598.6,0.00013895,2]
[368689822,1751299832067,-809.58,0.00013895,2]
[368689823,1751299832077,-2874.27,0.00013895,2]
[368689824,1751299832087,-2667.83,0.00013895,2]
[368689825,1751299832097,-601.02,0.00013895,2]
[368689826,1751299832107,-1026.39,0.00013895,2]
[368689827,1751299832117,-3720.15,0.00013895,2]
[368689828,1751299832127,-490.0,0.00013895,2]
[368689829,1751299832137,-528.24,0.00013895,2]
[368689830,1751299832147,-1301.71,0.00013895,2]
[368689831,1751299832157,-154.789387,0.00013895,2]
[368689832,1751299832166,-797.45,0.00013895,2]
[368689833,1751299832176,-1175.33,0.00013895,2]
[368689834,1751299832186,-157.485262,0.00013895,2]
[368689835,1751299832195,-375.204428,0.00013895,2]
[368689836,1751299832205,-490.0,0.00013895,2]
[368689837,1751299832215,-490.0,0.00013896,2]
[368689838,1751299832226,-996.95,0.00013896,2]
[368689839,1751299832236,-955.54,0.00013896,2]
[368689841,1751299832246,-518.52,0.00013896,2]
[368689843,1751299832256,-1407.02,0.00013896,2]
[368689844,1751299832266,-815.77,0.00013896,2]
[368689845,1751299832276,-586.47,0.00013896,2]
[368689846,1751299832285,-4097.22,0.00013896,2]
[368689847,1751299832295,-1406.74,0.00013896,2]
[368689848,1751299832305,-490.0,0.00013896,2]
[368689849,1751299832315,-1504.93,0.00013896,2]
[368689850,1751299832325,-490.0,0.00013896,2]
[368689851,1751299832336,-755.25,0.00013896,2]
[368689852,1751299832345,-907.96,0.00013896,2]
[368689853,1751299832355,-2038.88,0.00013896,2]
[368689854,1751299832366,-490.0,0.00013896,2]
[368689855,1751299832376,-490.0,0.00013896,2]
[368689856,1751299832386,-4856.43,0.00013896,2]
[368689857,1751299832914,-835.41,0.00013896,2]
[368689858,1751299832943,-490.0,0.00013896,2]
[368689859,1751299832952,-1374.3,0.00013896,2]
[368689860,1751299832963,-668.35,0.00013896,2]
[368689861,1751299832974,-642.9,0.00013896,2]
[368689862,1751299832984,-801.1,0.00013896,2]
[368689863,1751299832994,-490.0,0.00013896,2]
[368689864,1751299833006,-1321.08,0.00013896,2]
[368689865,1751299833017,-598.61,0.00013896,2]
[368689866,1751299833028,-490.0,0.00013896,2]
[368689867,1751299833038,-650.54,0.00013896,2]
[368689868,1751299833048,-5054.85,0.00013896,2]
[368689869,1751299833059,-472.73799305,0.00013896,2]
[368689870,1751299833069,-490.0,0.00013896,2]
[368689871,1751299833079,-1667.97,0.00013896,2]
[368689872,1751299833090,-3091.54,0.00013896,2]
[368689873,1751299833100,-490.0,0.00013896,2]
[368689874,1751299833111,-1708.58,0.00013896,2]
[368689875,1751299833122,-490.0,0.00013896,2]
[368689876,1751299833132,-2751.34,0.00013896,2]
[368689877,1751299833142,-1410.09,0.00013896,2]
[368689878,1751299833153,-3208.05,0.00013896,2]
[368689879,1751299833163,-490.0,0.00013896,2]
[368689880,1751299833174,-490.0,0.00013896,2]
[368689881,1751299833184,-2123.31,0.00013896,2]
[368689882,1751299833194,-3515.24,0.00013896,2]
[368689883,1751299833204,-657.67,0.00013896,2]
[368689884,1751299833214,-490.0,0.00013896,2]
[368689885,1751299833231,-878.65,0.00013896,2]
[368689886,1751299833241,-490.0,0.00013896,2]
[368689887,1751299833252,-2145.3,0.00013896,2]
[368689888,1751299833263,-1595.51,0.00013896,2]
[368689889,1751299833274,-490.0,0.00013896,2]
[368689890,1751299833285,-490.0,0.00013896,2]
[368689891,1751299833296,-490.0,0.00013896,2]
[368689892,1751299833306,-1411.05,0.00013896,2]
[368689893,1751299833316,-2092.81,0.00013896,2]
[368689894,1751299833326,-2364.32,0.00013896,2]
[368689895,1751299833337,-660.53,0.00013896,2]
[368689896,1751299833347,-1020.84,0.00013896,2]
[368689897,1751299833358,-490.0,0.00013896,2]
[368689898,1751299833369,-3140.42,0.00013896,2]
[368689899,1751299833381,-835.8297818,0.00013896,2]
[368689900,1751299833393,-561.71,0.00013897,2]
[368689901,1751299833404,-490.00000001,0.00013897,2]
[368689902,1751299833416,-544.72,0.00013897,2]
[368689903,1751299833427,-490.0,0.00013897,2]
[368689904,1751299833439,-490.0,0.00013897,2]
[368689905,1751299833449,-995.03,0.00013897,2]
[368689906,1751299833460,-825.79,0.00013897,2]
[368689907,1751299833471,-490.0,0.00013897,2]
[368689908,1751299833482,-542.74,0.00013897,2]
[368689909,1751299833493,-1102.41,0.00013897,2]
[368689910,1751299833503,-490.0,0.00013897,2]
[368689911,1751299833514,-599.03083931,0.00013897,2]
[368689912,1751299833524,-490.0,0.00013897,2]
[368689913,1751299833534,-490.0,0.00013897,2]
[368689914,1751299833545,-571.99,0.00013897,2]
[368689915,1751299833555,-994.72,0.00013897,2]
[368689916,1751299833565,-490.0,0.00013897,2]
[368689917,1751299833576,-490.0,0.00013897,2]
[368689918,1751299833589,-490.0,0.00013897,2]
[368689919,1751299833599,-490.0,0.00013897,2]
[368689920,1751299833609,-490.0,0.00013897,2]
[368689921,1751299833619,-171.21,0.000139,2]
[368689922,1751299833629,-1614.79,0.000139,2]
[368689923,1751299833639,-150.0,0.000139,2]
[368689924,1751299833649,-455.79,0.000139,2]
[368689925,1751299833664,-923.16,0.000139,2]
[368689926,1751299833674,-799.39,0.000139,2]
[368689927,1751299833684,-925.42,0.000139,2]
[368689928,1751299833694,-768.96173899,0.000139,2]
[368689929,1751299833704,-531.7427723,0.000139,2]
[368689930,1751299833715,-540.66854901,0.000139,2]
[368689931,1751299833727,-540.66854897,0.000139,2]
[368689932,1751299833737,-540.66854897,0.000139,2]